fUST/lending_fUST_20240304
["ID","MTS","AMOUNT","RATE_DAILY","PERIOD"]
[316584101,1709550640914,-543.64,0.00024657,2]
[316584102,1709550640922,-543.64,0.00024657,2]
[316584103,1709550640932,-500.0,0.00024657,2]
[316584104,1709550640941,-543.64,0.00024657,2]
[316584105,1709550640950,-500.0,0.00024657,2]
[316584106,1709550640959,-543.79,0.00024657,2]
[316584107,1709550640968,-505.70747015,0.00024657,2]
[316584108,1709550640978,-8643.4,0.00024657,2]
[316584109,1709550640987,-8643.4,0.00024657,2]
[316584110,1709550640999,-8643.4,0.00024657,2]
[316584111,1709550641009,-8643.4,0.00024657,2]
[316584112,1709550641018,-8643.4,0.00024657,2]
[316584113,1709550641027,-500.0,0.00024657,2]
[316584114,1709550641037,-500.25801833,0.00024657,2]
[316584115,1709550641046,-8643.4,0.00024657,2]
[316584116,1709550641055,-503.26425663,0.00024657,2]
[316584117,1709550641064,-500.0,0.00024657,2]
[316584118,1709550641075,-8643.4,0.00024657,2]
[316584119,1709550641084,-500.0,0.00024657,2]
[316584120,1709550641094,-8643.4,0.00024657,2]
[316584121,1709550641103,-500.0,0.00024657,2]
[316584122,1709550641113,-309.96385602,0.00024657,2]
[316584123,1709550641122,-8643.4,0.00024657,2]
[316584124,1709550641130,-564.2263334,0.00024657,2]
[316584125,1709550641140,-8643.4,0.00024657,2]
[316584126,1709550641150,-8643.4,0.00024657,2]
[316584127,1709550641158,-8643.4,0.00024657,2]
[316584128,1709550641167,-8643.4,0.00024657,2]
[316584129,1709550641176,-8643.4,0.00024657,2]
[316584130,1709550641254,-8643.4,0.00024657,2]
[316584131,1709550641263,-8643.4,0.00024657,2]
[316584132,1709550641273,-8643.4,0.00024657,2]
[316584133,1709550641281,-8643.4,0.00024657,2]
[316584134,1709550641290,-8643.4,0.00024657,2]
[316584135,1709550641301,-8643.4,0.00024657,2]
[316584136,1709550641309,-8643.4,0.00024657,2]
[316584137,1709550641318,-8643.4,0.00024657,2]
[316584138,1709550641327,-8643.4,0.00024657,2]
[316584139,1709550641336,-8643.45000095,0.00024657,2]
[316584140,1709550641346,-500.0,0.00024657,2]
[316584141,1709550641355,-500.0,0.00024657,2]
[316584142,1709550641364,-500.0,0.00024657,2]
[316584143,1709550641373,-500.0,0.00024657,2]
[316584144,1709550641382,-500.0,0.00024657,2]
[316584145,1709550641391,-500.0,0.00024657,2]
[316584146,1709550641400,-495.58513789,0.00024657,2]
[316584147,1709550641410,-776.4,0.00024657,2]
[316584148,1709550641420,-776.4,0.00024657,2]
[316584149,1709550641435,-776.4,0.00024657,2]
[316584150,1709550641444,-776.4,0.00024657,2]
[316584151,1709550641453,-776.4,0.00024657,2]
[316584152,1709550641462,-776.4,0.00024657,2]
[316584153,1709550641471,-776.4,0.00024657,2]
[316584154,1709550641480,-776.4,0.00024657,2]
[316584155,1709550641489,-776.4,0.00024657,2]
[316584156,1709550641498,-776.4,0.00024657,2]
[316584157,1709550641507,-776.4,0.00024657,2]
[316584158,1709550641516,-776.4,0.00024657,2]
[316584159,1709550641524,-500.0,0.00024657,2]
[316584160,1709550641533,-776.4,0.00024657,2]
[316584161,1709550641542,-776.4,0.00024657,2]
[316584162,1709550641551,-500.0,0.00024657,2]
[316584163,1709550641561,-776.4,0.00024657,2]
[316584164,1709550641570,-587.73696363,0.00024657,2]
[316584165,1709550641580,-776.4,0.00024657,2]
[316584166,1709550641590,-776.4,0.00024657,2]
[316584167,1709550641599,-776.4,0.00024657,2]
[316584168,1709550641608,-776.4,0.00024657,2]
[316584169,1709550641617,-776.4,0.00024657,2]
[316584170,1709550641627,-776.4,0.00024657,2]
[316584171,1709550641636,-500.0,0.00024657,2]
[316584172,1709550641645,-776.4,0.00024657,2]
[316584173,1709550641654,-500.0,0.00024657,2]
[316584174,1709550641664,-776.4,0.00024657,2]
[316584175,1709550641673,-500.0,0.00024657,2]
[316584176,1709550641683,-776.56798451,0.00024657,2]
[316584177,1709550641692,-500.0,0.00024657,2]
[316584178,1709550641702,-502.44684779,0.00024657,2]
[316584179,1709550641711,-500.0,0.00024657,2]
[316584180,1709550641720,-500.0,0.00024657,2]
[316584181,1709550641729,-500.0,0.00024657,2]
[316584182,1709550641738,-500.0,0.00024657,2]
[316584183,1709550641747,-500.0,0.00024657,2]
[316584184,1709550641756,-500.0,0.00024657,2]
[316584185,1709550641766,-500.0,0.00024657,2]
[316584186,1709550641776,-500.0,0.00024657,2]
[316584187,1709550641785,-500.0,0.00024657,2]
[316584188,1709550641794,-500.0,0.00024657,2]
[316584189,1709550641806,-411.61338598,0.00024657,2]
[316584190,1709550641815,-500.60471599,0.00024657,2]
[316584191,1709550641824,-500.0,0.00024657,2]
[316584192,1709550641833,-500.0,0.00024657,2]
[316584193,1709550641845,-266.17156605,0.00024657,2]
[316584194,1709550641854,-500.0,0.00024657,2]
[316584195,1709550641864,-502.11844382,0.00024657,2]
[316584196,1709550641873,-501.58034232,0.00024657,2]
[316584197,1709550641883,-500.0,0.00024657,2]
[316584198,1709550641892,-500.0,0.00024657,2]
[316584199,1709550641901,-500.0,0.00024657,2]
[316584200,1709550641910,-500.0,0.00024657,2]
[316584201,1709550641920,-500.0,0.00024657,2]
[316584202,1709550641929,-377.53246624,0.00024657,2]
[316584203,1709550641938,-500.0,0.00024657,2]
[316584204,1709550641948,-500.0,0.00024657,2]
[316584205,1709550641958,-500.0,0.00024657,2]
[316584206,1709550641967,-500.0,0.00024657,2]
[316584207,1709550641976,-500.0,0.00024657,2]
[316584208,1709550641985,-500.0,0.00024657,2]
[316584209,1709550641994,-500.0,0.00024657,2]
[316584210,1709550642003,-500.0,0.00024657,2]
[316584211,1709550642012,-185.07413675,0.00024657,2]
[316584212,1709550642022,-500.0,0.00024657,2]
[316584213,1709550642031,-500.0,0.00024657,2]
[316584214,1709550642040,-500.0,0.00024657,2]
[316584215,1709550642049,-500.0,0.00024657,2]
[316584216,1709550642058,-500.0,0.00024657,2]
[316584217,1709550642067,-500.0,0.00024657,2]
[316584218,1709550642077,-500.0,0.00024657,2]
[316584219,1709550642086,-500.0,0.00024657,2]
[316584220,1709550642097,-500.0,0.00024657,2]
[316584221,1709550642106,-500.0,0.00024657,2]
[316584222,1709550642115,-500.0,0.00024657,2]
[316584223,1709550642124,-500.0,0.00024657,2]
[316584224,1709550642133,-180.26454142,0.00024657,2]
[316584225,1709550642142,-501.50447989,0.00024657,2]
[316584226,1709550642152,-500.0,0.00024657,2]
[316584227,1709550642161,-500.0,0.00024657,2]
[316584228,1709550642170,-500.0,0.00024657,2]
[316584229,1709550642179,-500.0,0.00024657,2]
[316584230,1709550642188,-500.0,0.00024657,2]
[316584231,1709550642197,-500.0,0.00024657,2]
[316584232,1709550642206,-500.0,0.00024657,2]
[316584233,1709550642216,-500.0,0.00024657,2]
[316584234,1709550642225,-500.0,0.00024657,2]
[316584235,1709550642234,-480.3312985,0.00024657,2]
[316584236,1709550642243,-500.0,0.00024657,2]
[316584237,1709550642253,-372.20080766,0.00024657,2]
[316584238,1709550642262,-443.00248084,0.00024657,2]
[316584239,1709550642271,-500.0,0.00024657,2]
[316584240,1709550642281,-500.0,0.00024657,2]
[316584241,1709550642290,-500.0,0.00024657,2]
[316584242,1709550642300,-500.0,0.00024657,2]
[316584243,1709550642309,-500.0,0.00024657,2]
[316584244,1709550642318,-500.0,0.00024657,2]
[316584245,1709550642327,-500.0,0.00024657,2]
[316584246,1709550642337,-500.0,0.00024657,2]
[316584247,1709550642348,-500.0,0.00024657,2]
[316584248,1709550642357,-500.0,0.00024657,2]
[316584249,1709550642366,-500.0,0.00024657,2]
[316584250,1709550642376,-500.0,0.00024657,2]
[316584251,1709550642385,-500.0,0.00024657,2]
[316584252,1709550642394,-500.0,0.00024657,2]
[316584253,1709550642404,-500.0,0.00024657,2]
[316584254,1709550642413,-500.0,0.00024657,2]
[316584255,1709550642423,-334.67065595,0.00024657,2]
[316584256,1709550642433,-500.0,0.00024657,2]
[316584257,1709550642443,-502.02381159,0.00024657,2]
[316584258,1709550642452,-500.0,0.00024657,2]
[316584259,1709550642461,-597.87286989,0.00024657,2]
[316584260,1709550642470,-500.0,0.00024657,2]
[316584261,1709550642480,-544.71679012,0.00024657,2]
[316584262,1709550642489,-2449.31,0.00024657,2]
[316584263,1709550642499,-2449.31,0.00024657,2]
[316584264,1709550642510,-2449.31,0.00024657,2]
[316584265,1709550642519,-2449.31,0.00024657,2]
[316584266,1709550642529,-2449.31,0.00024657,2]
[316584267,1709550642539,-2449.31,0.00024657,2]
[316584268,1709550642548,-2449.31,0.00024657,2]
[316584269,1709550642557,-2449.31,0.00024657,2]
[316584270,1709550642566,-500.0,0.00024657,2]
[316584271,1709550642576,-2449.31,0.00024657,2]
[316584272,1709550642585,-2449.31,0.00024657,2]
[316584273,1709550642596,-2449.31,0.00024657,2]
[316584274,1709550642606,-505.0,0.00024657,2]
[316584275,1709550642615,-2449.31,0.00024657,2]
[316584276,1709550642625,-913.74,0.00024657,2]
[316584277,1709550642634,-2449.31,0.00024657,2]
[316584278,1709550642643,-913.74,0.00024657,2]
[316584279,1709550642652,-2449.31,0.00024657,2]
[316584280,1709550642661,-2449.31,0.00024657,2]
[316584281,1709550642671,-2449.31,0.00024657,2]
[316584282,1709550642680,-913.74,0.00024657,2]
[316584283,1709550642689,-913.74,0.00024657,2]
[316584284,1709550642699,-913.74,0.00024657,2]
[316584285,1709550642708,-2449.31,0.00024657,2]
[316584286,1709550642717,-913.74,0.00024657,2]
[316584287,1709550642726,-913.74,0.00024657,2]
[316584288,1709550642735,-913.74,0.00024657,2]
[316584289,1709550642745,-500.0,0.00024657,2]
[316584290,1709550642755,-2449.31,0.00024657,2]
[316584291,1709550642765,-913.74,0.00024657,2]
[316584292,1709550642776,-2449.31,0.00024657,2]
[316584293,1709550642788,-913.74,0.00024657,2]
[316584294,1709550642798,-500.0,0.00024657,2]
[316584295,1709550642809,-2449.31,0.00024657,2]
[316584296,1709550642819,-913.74,0.00024657,2]
[316584297,1709550642829,-500.0,0.00024657,2]
[316584298,1709550642840,-2449.31,0.00024657,2]
[316584299,1709550642850,-913.74,0.00024657,2]
[316584300,1709550642860,-2449.31,0.00024657,2]
[316584301,1709550642871,-913.74,0.00024657,2]
[316584302,1709550642882,-500.0,0.00024657,2]
[316584304,1709550642892,-2449.31,0.00024657,2]
[316584306,1709550643008,-913.74,0.00024657,2]
[316584307,1709550643019,-500.0,0.00024657,2]
[316584308,1709550643029,-2449.37435776,0.00024657,2]
[316584310,1709550643038,-913.74,0.00024657,2]
[316584312,1709550643046,-500.0,0.00024657,2]
[316584314,1709550643056,-913.74,0.00024657,2]
[316584316,1709550643065,-331.81548303,0.00024657,2]
[316584317,1709550643074,-913.74,0.00024657,2]
[316584319,1709550643084,-913.74,0.00024657,2]
[316584321,1709550643094,-913.74,0.00024657,2]
[316584322,1709550643104,-913.74,0.00024657,2]
[316584323,1709550643113,-913.74,0.00024657,2]
[316584324,1709550643122,-913.74,0.00024657,2]
[316584325,1709550643132,-913.74,0.00024657,2]
[316584326,1709550643141,-913.91650511,0.00024657,2]
[316584328,1709550643150,-278.34024856,0.00024657,2]
[316584329,1709550643159,-500.0,0.00024657,2]
[316584330,1709550643169,-500.0,0.00024657,2]
[316584331,1709550643178,-500.0,0.00024657,2]
[316584332,1709550643187,-500.0,0.00024657,2]
[316584333,1709550643196,-169.50397513,0.00024657,2]
[316584334,1709550643206,-500.0,0.00024657,2]
[316584335,1709550643216,-500.0,0.00024657,2]
[316584336,1709550643226,-500.0,0.00024657,2]
[316584337,1709550643235,-336.22196769,0.00024657,2]
[316584338,1709550643341,-163.77803231,0.00024657,2]
[316584339,1709550643350,-500.0,0.00024657,2]
[316584340,1709550643360,-500.0,0.00024657,2]
[316584341,1709550643369,-500.0,0.00024657,2]
[316584342,1709550643378,-500.0,0.00024657,2]
[316584343,1709550643387,-448.70416613,0.00024657,2]
[316584344,1709550643396,-1498.55,0.00024657,2]
[316584345,1709550643406,-500.0,0.00024657,2]
[316584346,1709550643415,-1498.55,0.00024657,2]
[316584347,1709550643424,-500.0,0.00024657,2]
[316584348,1709550643433,-1498.55,0.00024657,2]
[316584349,1709550643442,-1498.55,0.00024657,2]
[316584350,1709550643451,-500.0,0.00024657,2]
[316584351,1709550643460,-1498.55,0.00024657,2]
[316584352,1709550643469,-1498.55,0.00024657,2]
[316584353,1709550643479,-1498.55,0.00024657,2]
[316584354,1709550643488,-1498.55,0.00024657,2]
[316584355,1709550643498,-1498.55,0.00024657,2]
[316584356,1709550643508,-1498.55,0.00024657,2]
[316584357,1709550643517,-1498.55,0.00024657,2]
[316584358,1709550643527,-1498.55,0.00024657,2]
[316584359,1709550643536,-1498.55,0.00024657,2]
[316584360,1709550643545,-1498.55,0.00024657,2]
[316584361,1709550643554,-1498.55,0.00024657,2]
[316584362,1709550643564,-1498.55,0.00024657,2]
[316584363,1709550643573,-1498.55,0.00024657,2]
[316584364,1709550643583,-541.72852774,0.00024657,2]
[316584365,1709550643594,-1498.55,0.00024657,2]
[316584366,1709550643603,-1498.55,0.00024657,2]
[316584367,1709550643613,-1498.55,0.00024657,2]
[316584368,1709550643622,-1498.55,0.00024657,2]
[316584369,1709550643632,-1498.55,0.00024657,2]
[316584370,1709550643641,-1498.55,0.00024657,2]
[316584371,1709550643651,-193.27426994,0.00024657,2]
[316584372,1709550643660,-1498.55092607,0.00024657,2]
[316584373,1709550643669,-500.0,0.00024657,2]
[316584374,1709550643679,-500.0,0.00024657,2]
[316584375,1709550643688,-500.0,0.00024657,2]
[316584376,1709550643698,-405.06300127,0.00024657,2]
[316584377,1709550643707,-551.08,0.00024657,2]
[316584378,1709550643716,-551.08,0.00024657,2]
[316584379,1709550643725,-500.0,0.00024657,2]
[316584380,1709550643741,-551.08,0.00024657,2]
[316584381,1709550643758,-500.0,0.00024657,2]
[316584382,1709550643774,-500.0,0.00024657,2]
[316584383,1709550643789,-551.08,0.00024657,2]
[316584384,1709550643800,-500.0,0.00024657,2]
[316584385,1709550643814,-551.08,0.00024657,2]
[316584386,1709550643828,-500.0,0.00024657,2]
[316584387,1709550643841,-500.0,0.00024657,2]
[316584388,1709550643856,-551.08,0.00024657,2]
[316584389,1709550643869,-504.31507577,0.00024657,2]
[316584390,1709550643883,-500.0,0.00024657,2]
[316584391,1709550643894,-551.08,0.00024657,2]
[316584392,1709550643906,-500.0,0.00024657,2]
[316584393,1709550643918,-551.08,0.00024657,2]
[316584394,1709550643931,-447.49511187,0.00024657,2]
[316584395,1709550643944,-551.08,0.00024657,2]
[316584396,1709550643955,-551.08,0.00024657,2]
[316584397,1709550643970,-551.08,0.00024657,2]
[316584398,1709550643982,-551.08,0.00024657,2]
[316584399,1709550643993,-551.08,0.00024657,2]
[316584400,1709550644004,-551.08,0.00024657,2]
[316584401,1709550644019,-551.08,0.00024657,2]
[316584402,1709550644032,-1049.88,0.00024657,2]
[316584403,1709550644046,-551.08,0.00024657,2]
[316584404,1709550644057,-1049.88,0.00024657,2]
[316584405,1709550644070,-551.08,0.00024657,2]
[316584406,1709550644081,-1049.88,0.00024657,2]
[316584407,1709550644094,-551.08,0.00024657,2]
[316584408,1709550644106,-551.08,0.00024657,2]
[316584409,1709550644120,-551.08,0.00024657,2]
[316584410,1709550644133,-1049.88,0.00024657,2]
[316584411,1709550644146,-551.08,0.00024657,2]
[316584412,1709550644159,-1049.88,0.00024657,2]
[316584413,1709550644171,-551.08,0.00024657,2]
[316584414,1709550644182,-1049.88,0.00024657,2]
[316584415,1709550644192,-551.08,0.00024657,2]
[316584416,1709550644203,-1049.88,0.00024657,2]
[316584417,1709550644215,-551.16495726,0.00024657,2]
[316584418,1709550644227,-1049.88,0.00024657,2]
[316584419,1709550644238,-1049.88,0.00024657,2]
[316584420,1709550644250,-1049.88,0.00024657,2]
[316584421,1709550644261,-1049.88,0.00024657,2]
[316584422,1709550644272,-1049.88,0.00024657,2]
[316584423,1709550644282,-1049.88,0.00024657,2]
[316584424,1709550644293,-1049.88,0.00024657,2]
[316584425,1709550644304,-500.0,0.00024657,2]
[316584426,1709550644315,-1049.88,0.00024657,2]
[316584427,1709550644326,-500.0,0.00024657,2]
[316584428,1709550644337,-1049.88,0.00024657,2]
[316584429,1709550644350,-1049.88,0.00024657,2]
[316584430,1709550644360,-1049.88,0.00024657,2]
[316584431,1709550644371,-1049.88,0.00024657,2]
[316584432,1709550644383,-1049.88,0.00024657,2]
[316584433,1709550644394,-1049.88,0.00024657,2]
[316584434,1709550644406,-1049.88,0.00024657,2]
[316584435,1709550644417,-1049.88,0.00024657,2]
[316584436,1709550644428,-1050.08265035,0.00024657,2]
[316584437,1709550644439,-1084.43,0.00024657,2]
[316584438,1709550644450,-1084.43,0.00024657,2]
[316584439,1709550644461,-1084.43,0.00024657,2]
[316584440,1709550644473,-215.95432145,0.00024657,2]
[316584441,1709550644667,-868.47567855,0.00024657,2]
[316584442,1709550644676,-1084.43,0.00024657,2]
[316584443,1709550644686,-1084.43,0.00024657,2]
[316584444,1709550644819,-1084.43,0.00024657,2]
[316584445,1709550644829,-568.58562075,0.00024657,2]
[316584446,1709550644841,-515.84437925,0.00024657,2]
[316584447,1709550644851,-1084.43,0.00024657,2]
[316584448,1709550644861,-1084.43,0.00024657,2]
[316584449,1709550644870,-1084.43,0.00024657,2]
[316584450,1709550644880,-1084.43,0.00024657,2]
[316584451,1709550644889,-1084.43,0.00024657,2]
[316584452,1709550644898,-500.0,0.00024657,2]
[316584453,1709550644907,-72.50562075,0.00024657,2]
[316584480,1709550646452,-616.02437925,0.00024657,2]
[316584481,1709550646463,-343.1252236,0.00024657,2]
[316584482,1709550646472,-84.85039715,0.00024657,2]
[316584483,1709550646512,-999.57960285,0.00024657,2]
[316584484,1709550646522,-1084.43,0.00024657,2]
[316584485,1709550646533,-688.53,0.00024657,2]
[316584486,1709550646544,-1084.43,0.00024657,2]
[316584487,1709550646554,-688.53,0.00024657,2]
[316584489,1709550646564,-1084.43,0.00024657,2]
[316584490,1709550646574,-1084.43,0.00024657,2]
[316584492,1709550646585,-69.52264727,0.00024657,2]
[316586270,1709551840562,-154.87609912,0.00022391,2]
[316586271,1709551840571,-623.74333508,0.00022392,2]
[316586272,1709551840581,-250.0,0.00022393,2]
[316586273,1709551840606,-469.38532706,0.00022405,2]
[316586274,1709551840619,-1965.24179194,0.00022405,2]
[316586275,1709551840629,-249.295091,0.00022439,2]
[316586277,1709551840639,-1048.09190711,0.00022507,2]
[316586279,1709551840652,-682.38211209,0.00022507,2]
[316586280,1709551840661,-150.0,0.00022557,2]
[316586281,1709551840671,-738.61983531,0.00022728,2]
[316586282,1709551840681,-357.75119272,0.00022728,2]
[316586283,1709551840691,-1458.88602451,0.00022997,2]
[316586284,1709551840700,-252.91248501,0.00022998,2]
[316586285,1709551840710,-274.07170286,0.00023059,5]
[316586286,1709551840719,-208.77342431,0.00024,2]
[316586287,1709551840729,-203.176326,0.000242,2]
[316586288,1709551840739,-1000.0,0.00024226,5]
[316586289,1709551840748,-864.97676812,0.00024229,5]
[316586290,1709551840760,-135.02323188,0.00024229,5]
[316586291,1709551840769,-581.0,0.000243,2]
[316586292,1709551840779,-81.85805754,0.00024421,2]
[316586705,1709551846746,-418.14194246,0.00024421,2]
[316586707,1709551846755,-4119.4194585,0.00024422,5]
[316587193,1709552472178,974.59691805,0.000193,2]
[316587215,1709552740377,214.57920582,0.000192,2]
[316587223,1709552799482,315.35201023,0.000189,2]
[316587224,1709552799549,1458.11380158,0.000192,2]
[316587226,1709552815620,1458.11380158,0.000192,2]
[316587229,1709552831607,1458.11380158,0.000192,2]
[316587230,1709552836122,-241.81331068,0.00019203,2]
[316587231,1709552836153,-381.9300244,0.00019203,2]
[316587232,1709552836175,-227.26689456,0.00019204,2]
[316587233,1709552836197,-131.85157832,0.00021766,2]
[316587237,1709552844085,-297.81797928,0.00021766,2]
[316587238,1709552844106,-146.67244444,0.00021958,2]
[316587239,1709552853554,1458.11380158,0.000192,2]
[316587240,1709552964090,-401.00883587,0.00021765,2]
[316587241,1709552964110,-939.27972537,0.00021766,2]
[316587242,1709552964130,-633.2385508,0.00021766,2]
[316587243,1709552964153,-8719.03793204,0.00021766,2]
[316587244,1709552964173,-2309.21003079,0.00022,2]
[316587245,1709552964193,-183.6776315,0.00022169,2]
[316587246,1709552964214,-623.74333508,0.00022206,2]
[316587247,1709552964233,-483.49855056,0.00022207,2]
[316587248,1709552964253,-265.83405327,0.00022307,2]
[316587249,1709552978136,1922.96458027,0.0002,2]
[316587313,1709553040016,-852.70519737,0.0002,2]
[316587314,1709553040029,-263.75743886,0.0002,2]
[316587315,1709553040041,-1398.83313986,0.0002,2]
[316587431,1709553045724,-328.57295718,0.0002,2]
[316587432,1709553045785,-1305.45763271,0.0002,2]
[316587434,1709553045799,-3279.98553659,0.0002,2]
[316587436,1709553045810,-174.48123141,0.00022746,2]
[316587437,1709553045821,-743.67178234,0.00023059,5]
[316587438,1709553045830,-3498.51354548,0.00023611,2]
[316587439,1709553045839,-315.35201023,0.000239,2]
[316587440,1709553045847,-308.8017164,0.000239,2]
[316587441,1709553045857,-186.52871366,0.00023998,2]
[316587442,1709553045865,-430.25737186,0.00023998,2]
[316587443,1709553045874,-444.9847706,0.00023998,2]
[316587444,1709553045884,-241.81331068,0.00023998,2]
[316587445,1709553045894,-500.0,0.00023999,2]
[316587446,1709553045903,-500.0,0.00023999,2]
[316587447,1709553045912,-369.12018264,0.00023999,2]
[316587448,1709553045922,-500.0,0.00023999,2]
[316587449,1709553045931,-500.0,0.00023999,2]
[316587450,1709553045940,-177.57326777,0.00023999,2]
[316587451,1709553045949,-500.0,0.00023999,2]
[316587452,1709553045958,-10585.80090492,0.00024,5]
[316587453,1709553045969,-8615.20198899,0.00024,5]
[316587500,1709553174553,273.08,0.000192,2]
[316587503,1709553268836,2364.53357763,0.00018,2]
[316587504,1709553268866,4994.85217825,0.00018,2]
[316587508,1709553664355,25000.0,0.00027,120]
[316587516,1709554012554,210.989413,0.00018464,2]
[316587518,1709554042155,-1080.24298436,0.00019404,2]
[316587519,1709554042174,-745.08532418,0.00019405,2]
[316587520,1709554042198,-8002.49479531,0.00019405,2]
[316587521,1709554043155,-178.95132162,0.00019405,2]
[316587537,1709554145094,-623.74333508,0.00019401,2]
[316587538,1709554145115,-274.17258195,0.00019401,2]
[316587539,1709554145135,-1635.48761741,0.00019402,2]
[316587540,1709554145155,-184.657561,0.00019422,2]
[316587541,1709554145174,-7261.86083224,0.00019466,2]
[316587542,1709554148141,-8672.97530045,0.00019466,2]
[316587543,1709554148161,-20510.552956,0.00019467,2]
[316587544,1709554148183,-500.0,0.00019547,2]
[316587545,1709554148203,-169.668718,0.00019558,2]
[316587546,1709554148222,-5752.47080039,0.0002,2]
[316587547,1709554148241,-273.5581506,0.00021918,2]
[316587679,1709554239306,-745.08532418,0.00021917,2]
[316587680,1709554239315,-126.96951819,0.00021918,2]
[316587681,1709554239324,-228.30210762,0.00022729,2]
[316587682,1709554239334,-1635.48761741,0.00022999,2]
[316587683,1709554239343,-39902.98150129,0.00023,2]
[316587684,1709554239353,-153.0,0.00023203,2]
[316587685,1709554239362,-181.4891728,0.00023216,2]
[316587686,1709554239372,-238.94111818,0.00023998,2]
[316587687,1709554239381,-262.31089602,0.00023998,2]
[316587688,1709554239390,-1973.52711204,0.00023998,2]
[316587689,1709554239401,-325.89735209,0.00023998,2]
[316587690,1709554239411,-2594.58,0.00023998,2]
[316587691,1709554239420,-508.61200319,0.00023998,2]
[316587692,1709554239430,-167.29112073,0.00023998,2]
[316587693,1709554239440,-623.51457939,0.00023998,2]
[316587694,1709554239449,-315.83108927,0.00023998,2]
[316587695,1709554239459,-10893.4061875,0.00023998,2]
[316587696,1709554239469,-927.10128616,0.00023999,2]
[316587697,1709554239478,-500.0,0.00023999,2]
[316587698,1709554239488,-500.0,0.00023999,2]
[316587699,1709554239497,-633.34324578,0.00023999,2]
[316587700,1709554239506,-500.0,0.00023999,2]
[316587701,1709554239515,-500.0,0.00023999,2]
[316587702,1709554239524,-500.0,0.00023999,2]
[316587703,1709554239533,-500.0,0.00023999,2]
[316587704,1709554239543,-500.0,0.00023999,2]
[316587705,1709554239552,-581.97136936,0.00023999,2]
[316587706,1709554239562,-187.24752539,0.00023999,2]
[316587707,1709554239571,-500.0,0.00023999,2]
[316587708,1709554239580,-500.0,0.00023999,2]
[316587709,1709554239590,-500.0,0.00023999,2]
[316587710,1709554239599,-162.64990332,0.00023999,2]
[316587711,1709554239608,-500.0,0.00023999,2]
[316587712,1709554239617,-1798543.47398477,0.00024,5]
[316587720,1709554241026,-1621.0705,0.00024,5]
[316587814,1709554246050,-17656.4933485,0.00024,5]
[316587816,1709554246062,-632.32358823,0.00024,5]
[316588140,1709555247106,-154.87609912,0.00020892,2]
[316588141,1709555247126,-154.87609912,0.00020892,2]
[316588142,1709555247146,-160.02841284,0.00020893,2]
[316588143,1709555247166,-1458.88602451,0.00020893,2]
[316588144,1709555247188,-2131.36537707,0.00020893,2]
[316588147,1709555271774,391.92414658,0.000189,2]
[316588150,1709555352115,-175.662113,0.0002075,2]
[316588151,1709555352135,-1635.48761741,0.00020904,2]
[316588152,1709555352155,-1104.64200632,0.00020905,2]
[316588153,1709555353090,-1198.489946,0.00020905,2]
[316588154,1709555356124,-13631.70418037,0.00020905,2]
[316588155,1709555356144,-3484.2675263,0.00020906,2]
[316588156,1709555356164,-197.105443,0.00021011,2]
[316588157,1709555356185,-100.94824962,0.00021349,2]
[316588175,1709555432169,-149.05175038,0.00021349,2]
[316588176,1709555432179,-121.28730962,0.00021979,2]
[316588180,1709555432279,-75.81813338,0.00021979,2]
[316588181,1709555432296,-1458.88602451,0.00022728,2]